fUST/lending_fUST_20240420
["ID","MTS","AMOUNT","RATE_DAILY","PERIOD"]
[322955473,1713542712751,1554.7265166,0.00021478,2]
[322955475,1713542744780,150.8642222,0.00023405,30]
[322955476,1713542744823,150.8642222,0.00022937,120]
[322955477,1713542768919,7557.85757456,0.00021472,2]
[322955478,1713542768952,7492.91143259,0.00021472,2]
[322955480,1713542798239,150.0,0.00019372,2]
[322955481,1713542965613,190.3316928,0.00020459,2]
[322955530,1713543032455,-154.86062544,0.00021371,2]
[322955532,1713543032466,-1489.22314453,0.00021371,2]
[322955533,1713543032475,-383.24622747,0.00021372,2]
[322955535,1713543032484,-9997.27000256,0.00021448,2]
[322955536,1713543032498,-6652.17199174,0.00021448,2]
[322955537,1713543032509,-55860.97529537,0.00021448,2]
[322955538,1713543032518,-2126.51224034,0.00021449,2]
[322955541,1713543032528,-1310.7097611,0.00021449,2]
[322955543,1713543032537,-7861.03845774,0.00021449,2]
[322955544,1713543032549,-1576.32789394,0.0002145,2]
[322955547,1713543032559,-31273.83103706,0.0002145,2]
[322955548,1713543032568,-2585.8857477,0.00021451,2]
[322955551,1713543032578,-283.08369263,0.00021451,2]
[322955552,1713543032587,-300.0,0.00021451,2]
[322955554,1713543032596,-300.0,0.00021451,2]
[322955556,1713543032606,-2622.05694045,0.00021452,2]
[322955558,1713543032615,-564.09332327,0.00021452,2]
[322955560,1713543032625,-308.26347028,0.00021452,2]
[322955562,1713543032634,-260.82342867,0.00021452,2]
[322955564,1713543032643,-767.39052551,0.00021453,5]
[322955566,1713543032652,-193.45780411,0.00021453,2]
[322955569,1713543032663,-211.91364755,0.00021453,2]
[322955571,1713543032673,-9849.23099285,0.00021472,2]
[322955573,1713543032682,-203.36428766,0.00022889,6]
[322955574,1713543032691,-658.5812737,0.00022992,2]
[322955576,1713543032700,-420.0,0.00023323,2]
[322955578,1713543032709,-420.0,0.00023596,2]
[322955581,1713543032719,-150.8642222,0.00023882,7]
[322955583,1713543032728,-8768.26851215,0.00024,7]
[322955584,1713543032737,-150.8642222,0.0002437,4]
[322955587,1713543032746,-150.0,0.00024372,2]
[322955588,1713543032755,-383.24622744,0.00024594,2]
[322955591,1713543032765,-150.8642222,0.00024867,2]
[322955592,1713543032774,-154.86062544,0.00025141,2]
[322955594,1713543032784,-154.87609912,0.00025141,2]
[322955596,1713543032796,-154.86062544,0.00025141,2]
[322955598,1713543032805,-1157.54106923,0.00025341,2]
[322955600,1713543032814,-191.0,0.00025358,2]
[322955603,1713543032824,-587.0,0.00025955,2]
[322955604,1713543032833,-2040.62,0.00026,2]
[322955607,1713543032843,-471.31782646,0.00026999,2]
[322955609,1713543032852,-8510.41889157,0.00027,2]
[322955610,1713543032862,-154.86062544,0.00027,2]
[322955612,1713543032871,-500.0,0.00027397,2]
[322955615,1713543032881,-500.0,0.00027397,2]
[322955617,1713543032890,-500.0,0.00027397,2]
[322955618,1713543032899,-500.0,0.00027397,2]
[322955621,1713543032909,-605.00854475,0.00027397,2]
[322955623,1713543032918,-171.113284,0.00027397,2]
[322955625,1713543032927,-932.9128092,0.00027397,2]
[322955627,1713543032936,-3707.6570454,0.00027397,2]
[322955629,1713543032946,-221.013137,0.00027397,2]
[322955631,1713543032955,-163.674599,0.00027397,2]
[322955633,1713543032967,-262.06309887,0.000274,2]
[322955635,1713543032975,-155.37524187,0.00027503,2]
[322955637,1713543032984,-150.8642222,0.0002763,2]
[322955639,1713543032997,-250.26564092,0.0002763,2]
[322955640,1713543033006,-383.24622744,0.00027817,2]
[322955642,1713543033015,-163.674599,0.00028038,2]
[322955644,1713543033025,-301.7284444,0.00028094,4]
[322955646,1713543033035,-823.0,0.00028551,2]
[322955649,1713543033049,-603.4568888,0.00028566,7]
[322955651,1713543033062,-163.674599,0.00028679,2]
[322955652,1713543033073,-5319.61477429,0.00029,2]
[322955654,1713543033082,-166.84376062,0.00029047,4]
[322955656,1713543033091,-1206.9137776,0.0002929,30]
[322955658,1713543033101,-163.674599,0.00029321,2]
[322955660,1713543033110,-163.674599,0.00029962,2]
[322955663,1713543033122,-930.07258122,0.0003,4]
[322955665,1713543033131,-4342.17414183,0.0003,5]
[322955667,1713543033142,-208.563198,0.00030137,2]
[322955669,1713543033151,-163.674599,0.00030603,2]
[322955671,1713543033161,-415.3057043,0.00030998,4]
[322955673,1713543033171,-483.3014987,0.00030998,4]
[322955675,1713543033181,-407.05428289,0.00030999,4]
[322955677,1713543033190,-350.42643964,0.00031,4]
[322955679,1713543033201,-383.24622744,0.00031039,2]
[322955681,1713543033210,-1152.0,0.00031406,2]
[322955682,1713543033220,-191.2801184,0.00032,4]
[322955684,1713543033229,-10585.44832749,0.00032599,2]
[322955687,1713543033242,-415.38634656,0.00032599,2]
[322955689,1713543033253,-1028.45879911,0.00032599,2]
[322955691,1713543033262,-605.16066586,0.00033,4]
[322955693,1713543033272,-221.013137,0.00033165,2]
[322955695,1713543033281,-465.76981599,0.00034,4]
[322955696,1713543033292,-383.24622744,0.00034261,2]
[322955697,1713543033301,-9768.01113341,0.0003428,2]
[322955698,1713543033310,-2205.13637677,0.000343,2]
[322955699,1713543033319,-475.03,0.0003436,2]
[322955700,1713543033329,-475.03,0.0003436,2]
[322955701,1713543033339,-475.03,0.0003436,2]
[322955702,1713543033348,-475.03,0.0003436,2]
[322955703,1713543033358,-475.03,0.0003436,2]
[322955704,1713543033372,-67803.04284503,0.00034361,14]
[322955738,1713543038622,-767.39052551,0.0002137,5]
[322955739,1713543038632,-211.91364755,0.0002137,2]
[322955740,1713543038641,-1199.66,0.00034351,3]
[322955741,1713543038650,-85195.04385531,0.00034361,14]
[322955742,1713543038663,-37224.4966025,0.00034361,14]
[322955743,1713543038674,-19521.2780172,0.00034361,14]
[322955744,1713543038685,-10232.055,0.00034361,14]
[322955745,1713543038697,-20736.10213498,0.00034361,14]
[322955746,1713543038706,-1551.34614349,0.00034361,2]
[322955747,1713543038716,-30867.15730158,0.00034361,30]
[322955748,1713543038725,-202.21989934,0.00034361,30]
[322955749,1713543038735,-154.87609812,0.00034361,2]
[322955750,1713543038744,-26845.77930363,0.00034361,30]
[322955751,1713543038754,-6176.81006509,0.00034361,120]
[322955752,1713543038763,-474.19997224,0.00034378,4]
[322955753,1713543038773,-407.60711246,0.00034379,4]
[322955754,1713543038782,-2096.10061417,0.00034379,4]
[322955755,1713543038791,-154.93802479,0.00034379,4]
[322955756,1713543038804,-154.95351395,0.00034379,4]
[322955757,1713543038814,-688.59429255,0.00034379,4]
[322955758,1713543038823,-467.87279548,0.00034379,4]
[322955759,1713543038832,-309.53569955,0.00034379,2]
[322955760,1713543038842,-155.17052379,0.00034379,4]
[322955761,1713543038851,-209.9294363,0.00034379,30]
[322955762,1713543038860,-232.50525342,0.00034379,4]
[322955763,1713543038870,-154.8915759,0.00034379,4]
[322955764,1713543038879,-10570.90534707,0.00034379,5]
[322955765,1713543038888,-68487.31283552,0.0003438,4]
[322955766,1713543038898,-150.0,0.000344,2]
[322955767,1713543038907,-1613.0,0.00034546,2]
[322955768,1713543038917,-440.4516996,0.00034555,10]
[322955769,1713543038927,-5600.0,0.000349,9]
[322955770,1713543038937,-63601.56977442,0.000349,2]
[322955771,1713543038946,-597.42560339,0.00035,2]
[322955772,1713543038956,-154.87609912,0.00035,4]
[322955773,1713543038966,-5304.47781307,0.00035,30]
[322955774,1713543038976,-513.03711942,0.00035,2]
[322955775,1713543038986,-6878.54444506,0.00035,4]
[322955776,1713543038998,-1352.3101937,0.00035,4]
[322955777,1713543039008,-177.342257,0.00035,2]
[322955778,1713543039018,-328.23078,0.00035,2]
[322955779,1713543039027,-328.23078,0.00035,2]
[322955780,1713543039038,-151.0,0.00035,2]
[322955781,1713543039050,-151.0,0.00035,2]
[322955782,1713543039157,-267.30797,0.00035,2]
[322955783,1713543039168,-151.0,0.00035,2]
[322955784,1713543039177,-151.0,0.00035,2]
[322955785,1713543039186,-151.0,0.00035,2]
[322955786,1713543039196,-337.841557,0.00035,2]
[322955787,1713543039205,-285.942015,0.00035,2]
[322955788,1713543039214,-505.832648,0.00035,2]
[322955789,1713543039224,-337.841557,0.00035,2]
[322955790,1713543039233,-505.832648,0.00035,2]
[322955791,1713543039243,-285.942015,0.00035,2]
[322955792,1713543039252,-151.0,0.00035,2]
[322955793,1713543039261,-154.021014,0.00035,2]
[322955794,1713543039271,-187.566092,0.00035,2]
[322955795,1713543039281,-187.566092,0.00035,2]
[322955796,1713543039291,-1591.122889,0.00035,2]
[322955797,1713543039304,-1591.122889,0.00035,2]
[322955798,1713543039313,-153.663255,0.00035,2]
[322955799,1713543039323,-151.0,0.00035,2]
[322955800,1713543039333,-198.720789,0.00035,2]
[322955801,1713543039342,-231.014565,0.00035,2]
[322955802,1713543039352,-2413.8275552,0.00035478,120]
[322955803,1713543039362,-3011.624264,0.00035616,120]
[322955804,1713543039371,-1727.52,0.00035616,3]
[322955805,1713543039381,-1439.6,0.00035616,3]
[322955806,1713543039390,-154.86062544,0.0003589,2]
[322955807,1713543039399,-2516.562381,0.00036,30]
[322955808,1713543039409,-2924.56553642,0.00037,2]
[322955809,1713543039418,-159.75219824,0.0003714,2]
[322955810,1713543039428,-2258.0,0.00038001,2]
[322955811,1713543039437,-157.44846143,0.00038677,7]
[322955812,1713543039447,-221.013137,0.00038933,2]
[322955813,1713543039457,-6495.999999,0.000399,10]
[322955814,1713543039467,-153.25469597,0.00039964,7]
[322955815,1713543039476,-155.25597968,0.0004,2]
[322955816,1713543039485,-6374.6421392,0.0004,4]
[322955817,1713543039495,-652.82,0.0004,30]
[322955818,1713543039505,-8905.0,0.0004,30]
[322955819,1713543039514,-26128.725713,0.0004013,2]
[322955820,1713543039525,-153.25469597,0.00040281,30]
[322955821,1713543039534,-197.08852906,0.00041096,2]
[322955822,1713543039546,-6346.52783136,0.000411,4]
[322955823,1713543039557,-150.8642222,0.00041445,2]
[322955824,1713543039567,-249.50817853,0.00041453,2]
[322955825,1713543039577,-3011.624264,0.00041553,120]
[322955826,1713543039586,-193.045976,0.00041553,7]
[322955827,1713543039596,-337.841557,0.00041553,7]
[322955828,1713543039607,-285.942015,0.00041553,7]
[322955829,1713543039617,-505.832648,0.00041553,7]
[322955830,1713543039627,-337.841557,0.00041553,7]
[322955831,1713543039636,-505.832648,0.00041553,7]
[322955832,1713543039646,-285.942015,0.00041553,7]
[322955833,1713543039655,-187.566092,0.00041553,7]
[322955834,1713543039664,-187.566092,0.00041553,7]
[322955835,1713543039674,-1591.122889,0.00041553,7]
[322955836,1713543039683,-1591.122889,0.00041553,7]
[322955837,1713543039692,-231.014565,0.00041553,7]
[322955838,1713543039701,-150.53610885,0.00041622,30]
[322955839,1713543039710,-3162.0,0.00041801,3]
[322955840,1713543039719,-294.42398,0.00041836,7]
[322955841,1713543039729,-443.91080819,0.00042,120]
[322955842,1713543039738,-2710.27052521,0.00042,120]
[322955843,1713543039748,-518.77022475,0.000424,120]
[322955844,1713543039758,-150.278,0.00042783,2]
[322955845,1713543039767,-156.53252326,0.00044,120]
[322955846,1713543039777,-151.0,0.00044,7]
[322955847,1713543039786,-216.678596,0.00044,7]
[322955848,1713543039797,-153.25469597,0.00044176,30]
[322955849,1713543039806,-151.0,0.00044612,7]
[322955850,1713543039815,-221.013137,0.00044701,2]
[322955851,1713543039825,-8735.90689153,0.00045,120]
[322955852,1713543039834,-5579.80205581,0.00045,60]
[322955853,1713543039843,-151.0,0.00045,7]
[322955854,1713543039853,-328.23078,0.00045,7]
[322955855,1713543039864,-328.23078,0.00045,7]
[322955856,1713543039875,-171.113284,0.00045662,2]
[322955857,1713543039884,-154.87609912,0.000459,4]
[322955858,1713543039894,-2007.0,0.00045981,3]
[322955860,1713543039903,-14999.999999,0.00045989,2]
[322955861,1713543039912,-153.25469597,0.00046789,30]
[322955862,1713543039922,-1204.64,0.00047188,7]
[322955863,1713543039932,-3011.624264,0.00047489,120]
[322955864,1713543039941,-437.78805019,0.000475,120]
[322955865,1713543039954,-211.47204032,0.000475,120]
[322955866,1713543039964,-156.67054002,0.00048095,30]
[322955867,1713543039973,-795.37,0.00048106,7]
[322955868,1713543039982,-44.68791244,0.00048288,30]
[322955875,1713543040587,-231.014565,0.00035,2]
[322955876,1713543040597,-108.56678353,0.00048288,30]
[322955877,1713543040606,-2000.0,0.0004883,120]
[322955878,1713543040615,-286.04262797,0.00049,120]
[322955879,1713543040627,-3160.82352332,0.00049,120]
[322955880,1713543040639,-2334.54161137,0.00049,120]
[322955881,1713543040648,-153.25469597,0.00049376,30]
[322955883,1713543040658,-873.80482313,0.00049497,4]
[322955884,1713543040667,-1000.0,0.0004988,120]
[322955885,1713543040676,-475.03,0.00049999,7]
[322955886,1713543040686,-475.03,0.00049999,7]
[322955887,1713543040695,-311.59925143,0.00049999,7]
[322955888,1713543040841,-163.43074857,0.00049999,7]
[322955889,1713543040850,-475.03,0.00049999,7]
[322955890,1713543040859,-475.03,0.00049999,7]
[322955891,1713543040868,-154.87609912,0.0005,30]
[322955892,1713543040877,-1433.5161749,0.0005,2]
[322955893,1713543040886,-1743.66529457,0.0005,120]
[322955926,1713543046561,-338.53516198,0.00034261,2]
[322955927,1713543046572,-930.07258122,0.00034359,4]
[322955928,1713543046581,-1358.81506518,0.00034359,4]
[322955929,1713543046591,-309.70578029,0.00041552,4]
[322955930,1713543046600,-231.014565,0.00041553,7]
[322955931,1713543046609,-3120.79627401,0.00049999,4]
[322955932,1713543046621,-4368.56764041,0.00049999,4]
[322956160,1713543066531,1775.61272408,9.744e-05,2]
[322956204,1713544029143,-173.10065806,0.0002387,2]
[322956205,1713544029170,-667.99263696,0.0002387,2]
[322956206,1713544029196,-204.00475123,0.00023871,2]
[322956207,1713544029224,-1576.32789394,0.00023872,2]
[322956208,1713544029249,-249.50817853,0.00023899,2]
[322956209,1713544029278,-360.278871,0.00024,7]
[322956210,1713544029306,-167.803675,0.0002439,2]
[322956211,1713544029334,-156.98939648,0.00025,2]
[322956212,1713544029361,-550.69348254,0.00026636,3]
[322956342,1713544238705,-1795.89,0.00025703,2]
[322956343,1713544238717,-992.10462939,0.00025703,2]
[322956344,1713544238765,-22112.00537061,0.00025703,2]
[322956345,1713544238775,-469.26939572,0.00026532,2]
[322956346,1713544238784,-513.35127972,0.00026536,2]
[322956347,1713544238794,-9.30293275,0.00026636,3]
[322956349,1713544238804,-1900.74,0.00026715,3]
[322956350,1713544238813,-1583.95,0.00026715,3]
[322956351,1713544238822,-300.0,0.00026716,2]
[322956352,1713544238831,-500.0,0.00026723,2]
[322956353,1713544238841,-500.0,0.00026723,2]
[322956354,1713544238850,-500.0,0.00026723,2]
[322956355,1713544238859,-500.0,0.00026723,2]
[322956356,1713544238868,-272.53477675,0.00026723,2]
[322956357,1713544238877,-500.0,0.00026723,2]
[322956358,1713544238887,-500.0,0.00026723,2]
[322956359,1713544238896,-500.0,0.00026723,2]
[322956360,1713544238905,-507.38172316,0.00026723,2]
[322956361,1713544238915,-163.51556488,0.00026723,2]
[322956362,1713544238926,-595.52802048,0.00026723,2]
[322956363,1713544238935,-72510.41728967,0.00026724,2]
[322956364,1713544238944,-153.60574541,0.00026724,2]
[322956365,1713544238953,-463.3217532,0.00026724,2]
[322956366,1713544238962,-361.69196649,0.00026724,2]
[322956367,1713544238972,-59112.64828846,0.00026725,2]
[322956368,1713544238981,-156.97461354,0.00026728,2]
[322956369,1713544238991,-659.43850789,0.00026729,2]
[322956370,1713544239000,-203.60236123,0.00026729,2]
[322956371,1713544239010,-8510.41889157,0.00027,2]
[322956372,1713544239019,-500.0,0.00027397,2]
[322956373,1713544239030,-500.0,0.00027397,2]
[322956374,1713544239039,-500.0,0.00027397,2]
[322956375,1713544239049,-225.16759599,0.00027397,2]
[322956376,1713544239059,-159.63336,0.00027397,2]
[322956377,1713544239068,-164.100073,0.00027397,2]
[322956378,1713544239078,-150.89437394,0.00028076,7]
[322956379,1713544239086,-150.89437394,0.00028649,4]
[322956380,1713544239096,-150.89437394,0.00029233,2]
[322956381,1713544239105,-420.0,0.00029388,2]
[322956382,1713544239114,-2000.0,0.00029883,2]
[322956383,1713544239124,-467.87279548,0.00029993,2]
[322956384,1713544239133,-474.19997224,0.00029994,2]
[322956385,1713544239142,-154.95351395,0.00029994,2]
[322956386,1713544239151,-688.59429255,0.00029994,2]
[322956387,1713544239160,-2096.10061417,0.00029994,2]
[322956388,1713544239170,-154.8915759,0.00029994,2]
[322956389,1713544239183,-309.53569955,0.00029994,2]
[322956390,1713544239193,-155.17052379,0.00029994,2]
[322956391,1713544239202,-232.50525342,0.00029994,2]
[322956392,1713544239212,-154.93802479,0.00029994,2]
[322956394,1713544239221,-209.9294363,0.00029994,30]
[322956395,1713544239230,-2271.46002766,0.00029997,2]
[322956396,1713544239239,-4848.21770199,0.0003,5]
[322956397,1713544239249,-930.07258122,0.0003,4]
[322956399,1713544239258,-2574.2339,0.00030595,30]
[322956401,1713544239267,-1352.3101937,0.00030925,4]
[322956403,1713544239277,-323.69956788,0.00030999,4]
[322956404,1713544239286,-350.42643964,0.00031,4]
[322956405,1713544239295,-587.0,0.00032326,2]
[322956406,1713544239304,-150.89437394,0.00032481,2]
[322956407,1713544239313,-250.31565904,0.00032481,2]
[322956408,1713544239323,-5366.2842,0.00032595,30]
[322956409,1713544239335,-525.32722293,0.00032598,10]
[322956410,1713544239344,-1587.7606295,0.00033,4]
[322956411,1713544239353,-301.78874788,0.00033027,4]
[322956412,1713544239362,-603.57749575,0.00033582,7]
[322956413,1713544239373,-465.76981599,0.00034,4]
[322956414,1713544239383,-166.87710603,0.00034147,4]
[322956416,1713544239392,-34728.83194088,0.00034235,60]
[322956418,1713544239401,-21010.0506412,0.00034235,10]
[322956420,1713544239410,-755.80206996,0.00034361,4]
[322956421,1713544239424,-12099.67672445,0.00034361,7]
[322956423,1713544239432,-1207.15499151,0.00034432,30]
[322956424,1713544239441,-163.59252819,0.00034657,7]
[322956426,1713544239450,-5600.0,0.000349,9]
[322956427,1713544239459,-41209.55178723,0.000349,3]
[322956428,1713544239468,-10570.90534707,0.00035,5]
[322956429,1713544239477,-154.86062544,0.00035,30]
[322956430,1713544239486,-853.46514771,0.00035,2]
[322956431,1713544239495,-6878.54444506,0.00035,4]
[322956432,1713544239505,-214.32550929,0.00035,4]
[322956433,1713544239514,-51777.03759613,0.00035,30]
[322956574,1713544244198,-1576.32789394,0.00026531,2]
[322956576,1713544244208,-76129.44226904,0.00035,30]
[322956578,1713544244223,-94277.21299015,0.00035,30]
[322956580,1713544244247,-5600.91143012,0.00035,30]
[322956927,1713544885113,1000.0,0.0002769,120]
[322956930,1713545187323,-1233.43,0.00025234,3]
[322956931,1713545196013,1695.17,0.00025234,3]
[322956932,1713545217830,244.23121,0.00024265,2]
[322956933,1713545219376,1412.64,0.00025141,3]
[322956934,1713545230685,1177.2,0.00025141,3]
[322956935,1713545241770,655.76879,0.00024265,2]
[322956936,1713545241994,981.0,0.00025141,3]
[322956937,1713545253592,817.5,0.0002514,3]
[322956938,1713545264152,681.25,0.0002514,3]
[322956939,1713545378870,491.15972999,0.00024161,2]
[322956958,1713545431904,-308.26347028,0.00024253,2]
[322956959,1713545431914,-469.26939572,0.00024254,2]
[322956960,1713545431924,-161.90783343,0.00024254,2]
[322956961,1713545431933,-1489.22314453,0.00024254,2]
[322956962,1713545431943,-173.10065806,0.00024255,2]
[322956963,1713545431954,-7861.03845774,0.00024255,2]
[322956964,1713545431964,-2126.51224034,0.00024255,2]
[322956965,1713545431974,-1765.4550356,0.00024255,2]
[322956966,1713545431983,-408.57291394,0.00024256,2]
[322956967,1713545431993,-300.0,0.00024256,2]
[322956968,1713545432003,-300.0,0.00024256,2]
[322956969,1713545432013,-72510.41728967,0.00024257,2]
[322956970,1713545432022,-38763.21400453,0.00024258,2]
[322956971,1713545432034,-1385.57647358,0.00024258,2]
[322956996,1713545437950,-500.0,0.00024256,2]
[322956997,1713545437959,-500.0,0.00024256,2]
[322956998,1713545437968,-500.0,0.00024256,2]
[322956999,1713545437977,-500.0,0.00024256,2]
[322957000,1713545437986,-507.38172316,0.00024256,2]
[322957001,1713545437995,-272.53477675,0.00024256,2]
[322957002,1713545438004,-500.0,0.00024256,2]
[322957003,1713545438013,-500.0,0.00024256,2]
[322957004,1713545438022,-500.0,0.00024256,2]
[322957005,1713545438031,-595.52802048,0.00024256,2]
[322957007,1713545438039,-163.51556488,0.00024256,2]
[322957008,1713545438048,-361.69196649,0.00024257,2]
[322957009,1713545438057,-463.3217532,0.00024257,2]
[322957010,1713545438068,-153.60574541,0.00024257,2]
[322957012,1713545438077,-18963.85781035,0.00024258,2]
[322957013,1713545438086,-24244.23121,0.00024265,2]
[322957015,1713545438095,-2238.88433118,0.00025281,2]
[322957016,1713545438103,-300.0,0.00026297,2]
[322957017,1713545438112,-513.35127972,0.00026398,2]
[322957018,1713545438121,-420.0,0.00026682,2]
[322957019,1713545438129,-156.97461354,0.00026716,2]
[322957020,1713545438138,-467.87279548,0.00026716,2]
[322957021,1713545438147,-203.60236123,0.00026716,2]
[322957022,1713545438156,-309.53569955,0.00026716,2]
[322957023,1713545438165,-688.59429255,0.00026718,2]
[322957024,1713545438174,-232.50525342,0.0002672,2]
[322957026,1713545438183,-154.93802479,0.0002672,2]
[322957027,1713545438193,-474.19997224,0.0002672,2]
[322957028,1713545438202,-2096.10061417,0.0002672,2]
[322957029,1713545438211,-209.9294363,0.0002672,30]
[322957030,1713545438220,-155.17052379,0.0002672,2]
[322957032,1713545438229,-659.43850789,0.0002672,2]
[322957033,1713545438237,-154.95351395,0.0002672,2]
[322957034,1713545438246,-8510.41889157,0.00027,2]
[322957035,1713545438255,-500.0,0.00027397,2]
[322957037,1713545438264,-500.0,0.00027397,2]
[322957039,1713545438284,-500.0,0.00027397,2]
[322957041,1713545438296,-225.16759599,0.00027397,2]
[322957043,1713545438305,-210.004092,0.00027397,2]
[322957045,1713545438318,-171.113284,0.00027397,2]
[322957047,1713545438327,-154.92253873,0.0002769,2]
[322957049,1713545438336,-150.90945433,0.00028545,7]
[322957051,1713545438346,-150.90945433,0.00029128,4]
[322957053,1713545438357,-587.0,0.0002935,2]
[322957056,1713545438367,-150.90945433,0.00029722,2]
[322957057,1713545438377,-932.19614796,0.0003,4]
[322957059,1713545438387,-192.696713,0.00030137,2]
[322957061,1713545438397,-2574.2339,0.00030562,30]
[322957063,1713545438407,-350.42643964,0.00031,4]
[322957064,1713545438417,-1352.3101937,0.000315,4]
[322957065,1713545438427,-221.76571967,0.00031996,2]
[322957066,1713545438437,-191.2801184,0.00032,4]
[322957067,1713545438446,-823.0,0.00032285,2]
[322957069,1713545438456,-5366.2842,0.00032562,30]
[322957070,1713545438465,-150.90945433,0.00033024,2]
[322957072,1713545438475,-250.34067559,0.00033024,2]
[322957073,1713545438485,-210.004092,0.00033165,2]
[322957075,1713545438494,-301.81890865,0.00033579,4]
[322957076,1713545438504,-465.76981599,0.00034,4]
[322957077,1713545438514,-603.63781731,0.00034144,7]
[322957078,1713545438524,-431.13,0.00034192,3]
[322957079,1713545438533,-21010.0506422,0.00034202,10]
[322957080,1713545438543,-163.59252819,0.00034693,7]
[322957081,1713545438553,-166.89378373,0.00034718,4]
[322957082,1713545438562,-5600.0,0.000349,9]
[322957083,1713545438575,-8691.14819849,0.00035,30]
[322957084,1713545438585,-154.90705577,0.00035,4]
[322957085,1713545438594,-6878.54444506,0.00035,4]
[322957087,1713545438604,-154.92253873,0.00035,30]
[322957089,1713545438614,-4848.21770199,0.00035,5]
[322957090,1713545438624,-12099.67672445,0.00035,7]
[322957091,1713545438633,-853.46514771,0.00035,2]
[322957093,1713545438643,-755.80206996,0.00035,4]
[322957095,1713545438653,-1587.7606295,0.00035,4]
[322957096,1713545438662,-1207.27563462,0.00035008,30]
[322957097,1713545438672,-860.28,0.000354,2]
[322957098,1713545438681,-1152.0,0.00035513,2]
[322957099,1713545438694,-5194.946815,0.00035616,120]
[322957100,1713545438703,-302.13,0.00035616,3]
[322957101,1713545438713,-517.36,0.00035616,3]
[322957102,1713545438722,-3509.4786437,0.00037,2]
[322957103,1713545438731,-159.63336,0.0003736,2]
[322957104,1713545438741,-163.59252819,0.00037462,7]
[322957105,1713545438750,-163.59252819,0.00037929,7]
[322957106,1713545438760,-210.004092,0.00038933,2]
[322957107,1713545438772,-1613.0,0.00039065,3]
[322957108,1713545438782,-163.59252819,0.00039506,7]
[322957109,1713545438801,-6496.0,0.000396,10]
[322957110,1713545438820,-163.59252819,0.00039786,7]
[322957111,1713545438834,-6374.6421392,0.0004,4]
[322957112,1713545438848,-155.25597968,0.00040434,2]
[322957113,1713545438861,-163.59252819,0.00040795,30]
[322957114,1713545438872,-154.86062544,0.00040884,2]
[322957115,1713545438885,-549.90202406,0.00040885,4]
[322957116,1713545438899,-500.0,0.00041096,2]
[322957117,1713545438914,-262.39199217,0.00041096,2]
[322957118,1713545438927,-3525.8487952,0.000411,4]
[322957119,1713545438941,-5194.946815,0.00041553,120]
[322957120,1713545438953,-491.15972992,0.00042124,10]
[322957121,1713545438967,-2258.0,0.00042971,3]
[322957122,1713545438980,-200.0,0.00043068,120]
[322957123,1713545438990,-210.004092,0.00044701,2]
[322957124,1713545439003,-450.94545456,0.00044996,30]
[322957125,1713545439015,-525.32722293,0.00044999,10]
[322957126,1713545439028,-5579.80205581,0.00045,60]
[322957127,1713545439040,-8735.90689153,0.00045,120]
[322957128,1713545439052,-150.0,0.00045133,2]
[322957129,1713545439069,-163.59252819,0.00045828,30]
[322957130,1713545439082,-154.86062544,0.000459,4]
[322957131,1713545439095,-1204.65,0.000467,7]
[322957132,1713545439106,-165.0,0.00047,90]
[322957133,1713545439117,-3162.0,0.00047268,3]
[322957134,1713545439129,-159.63336,0.00047323,2]
[322957135,1713545439143,-163.59252819,0.00047469,30]
[322957136,1713545439154,-5194.946815,0.00047489,120]
[322957137,1713545439168,-437.78805019,0.000475,120]
[322957138,1713545439181,-159.75219824,0.00047873,2]
[322957139,1713545439193,-41209.55178723,0.000489,5]
[322957140,1713545439204,-471.31782646,0.00048996,4]
[322957141,1713545439217,-642.54438822,0.00048998,4]
[322957142,1713545439228,-5781.40776266,0.00049,120]
[322957143,1713545439241,-65642.13258276,0.00049,9]
[322957145,1713545439253,-163.59252819,0.000493,30]